bitfinex-derivatives/quotes_BTCF0:USTF0_20240917
["timestamp","ask_amount","ask_price","bid_price","bid_amount"]
[1726585791688,0.19577338,60917.0,60916.0,0.082067]
[1726585791892,0.19577338,60917.0,60914.0,0.3608]
[1726585792088,0.1124,60918.0,60914.0,0.3608]
[1726585792296,0.1124,60918.0,60917.0,0.082066]
[1726585792493,0.1124,60918.0,60908.0,0.37393]
[1726585792692,0.1124,60918.0,60908.0,0.03106734]
[1726585792896,0.1124,60918.0,60917.0,0.082066]
[1726585793289,0.1124,60918.0,60917.0,0.442866]
[1726585794186,0.1124,60918.0,60917.0,1.617412]
[1726585794794,0.1124,60918.0,60917.0,1.042866]
[1726585794990,0.1124,60918.0,60917.0,1.535346]
[1726585795187,0.1712725,60925.0,60924.0,0.082057]
[1726585795399,0.22165116,60925.0,60924.0,0.082057]
[1726585796099,0.22165119,60925.0,60919.0,0.00246227]
[1726585796292,0.32180445,60924.0,60919.0,0.00246227]
[1726585796489,0.10925119,60923.0,60919.0,0.00246227]
[1726585796684,0.10925119,60922.0,60920.0,0.082062]
[1726585796889,0.21255326,60924.0,60920.0,0.164124]
[1726585796890,0.05037869,60921.0,60920.0,0.164124]
[1726585797995,0.05037869,60921.0,60920.0,0.082062]
[1726585798187,0.09057088,60921.0,60920.0,0.082062]
[1726585798385,0.12227482,60921.0,60920.0,0.082062]
[1726585798992,0.12227482,60921.0,60920.0,0.095192]
[1726585800091,0.12227482,60921.0,60920.0,0.06181203]
[1726585801202,0.12227482,60921.0,60920.0,0.04868203]
[1726585802895,0.12227482,60921.0,60920.0,0.06181203]
[1726585803602,0.12227482,60921.0,60920.0,0.07494203]
[1726585803805,0.12227512,60921.0,60920.0,0.07494203]
[1726585804200,0.12227512,60921.0,60905.0,0.3608]
[1726585804201,0.164132,60917.0,60905.0,0.3608]
[1726585804399,0.164132,60917.0,60871.0,0.08218]
[1726585804400,0.5508,60906.0,60886.0,0.082108]
[1726585804701,0.21255326,60909.0,60884.0,0.5508]
[1726585804702,0.19,60899.0,60884.0,0.5508]
[1726585804914,0.12227512,60898.0,60884.0,0.5508]
[1726585805091,0.19,60899.0,60882.0,0.00246341]
[1726585805092,0.19,60885.0,60882.0,0.00246341]
[1726585805296,0.28586199,60884.0,60883.0,0.082112]
[1726585805497,0.19529096,60884.0,60883.0,0.082112]
[1726585805692,0.12227512,60884.0,60883.0,0.082112]
[1726585805901,0.07189657,60884.0,60883.0,0.082112]
[1726585806106,0.12227512,60884.0,60883.0,0.082112]
[1726585806295,0.07189657,60884.0,60883.0,0.082112]
[1726585807198,0.25167116,60884.0,60883.0,0.082112]
[1726585807402,0.25167116,60884.0,60882.0,0.37107843]
[1726585807601,0.12227512,60883.0,60882.0,0.05717553]
[1726585808311,0.07189657,60883.0,60882.0,0.05717553]
[1726585808510,0.25160192,60883.0,60882.0,0.05717553]
[1726585808698,0.30201292,60883.0,60882.0,0.05717553]
[1726585808899,0.30201292,60883.0,60878.0,0.00246349]
[1726585809099,0.632917,60879.0,60878.0,0.00246349]
[1726585809410,0.73197426,60879.0,60866.0,0.09973049]
[1726585809615,0.002464,60887.0,60866.0,0.09973049]
[1726585809616,0.19,60870.0,60866.0,0.01759549]
[1726585809820,0.12227512,60869.0,60863.0,0.3608]
[1726585810007,0.19,60870.0,60862.0,0.00246401]
[1726585810008,0.3608,60866.0,60862.0,0.00246401]
[1726585810202,0.12227512,60865.0,60862.0,0.00156387]
[1726585810403,0.12227512,60864.0,60862.0,0.01924208]
[1726585810606,0.10913512,60863.0,60862.0,0.02784387]
[1726585810799,0.05875657,60863.0,60862.0,0.02784387]
[1726585811212,0.23817731,60863.0,60862.0,0.02784387]
[1726585811609,0.19127412,60863.0,60862.0,0.02784387]
[1726585812303,0.61097326,60863.0,60847.0,0.3608]
[1726585812609,0.36202343,60862.0,60855.0,0.19]
[1726585812910,0.3608,60856.0,60850.0,0.19]
[1726585813214,0.09057103,60855.0,60854.0,0.082151]
[1726585813399,0.09057103,60855.0,60854.0,0.272151]
[1726585813602,0.09057103,60855.0,60854.0,0.19]
[1726585813603,0.05043529,60855.0,60854.0,0.19]
[1726585813808,0.21909719,60855.0,60854.0,0.19]
[1726585814009,0.05043358,60859.0,60855.0,0.49296]
[1726585814010,0.05889914,60859.0,60855.0,0.49296]
[1726585814211,0.05891885,60871.0,60870.0,0.082129]
[1726585814399,0.3608,60878.0,60871.0,0.19]
[1726585814604,0.3608,60891.0,60877.0,0.63292]
[1726585814902,0.3608,60891.0,60883.0,0.19]
[1726585815311,0.3608,60891.0,60887.0,0.082105]
[1726585815502,0.3608,60891.0,60888.0,0.082105]
[1726585815901,0.3608,60891.0,60889.0,0.082104]
[1726585816115,0.3608,60891.0,60890.0,0.272102]
[1726585817212,0.41970027,60891.0,60890.0,0.272102]
[1726585817417,0.3859,60898.0,60890.0,0.5508]
[1726585817615,0.3608,60904.0,60890.0,0.5508]
[1726585817616,0.05889281,60897.0,60894.0,0.19]
[1726585817805,0.05889281,60897.0,60890.0,0.3608]
[1726585817806,0.05889281,60903.0,60898.0,0.082092]
[1726585818115,0.1124,60903.0,60902.0,0.082086]
[1726585818313,0.1124,60903.0,60898.0,0.28246284]
[1726585818314,0.05888459,60903.0,60898.0,0.28246284]
[1726585818614,0.05888459,60903.0,60898.0,0.00246284]
[1726585818807,0.05888459,60903.0,60898.0,0.28246284]
[1726585819008,0.05888459,60903.0,60899.0,0.4926]
[1726585819208,0.05039335,60902.0,60899.0,0.4926]
[1726585819409,0.4732,60904.0,60903.0,0.082085]
[1726585819619,0.07530597,60904.0,60903.0,0.082085]
[1726585819910,0.3608,60925.0,60904.0,0.082084]
[1726585819911,0.14619261,60906.0,60904.0,0.082084]
[1726585820113,0.14619261,60906.0,60903.0,1.0926]
[1726585820114,0.3608,60925.0,60906.0,0.082081]
[1726585820317,0.3608,60925.0,60913.0,0.3608]
[1726585820519,0.44196975,60940.0,60924.0,0.6408]
[1726585820520,0.3608,60939.0,60924.0,0.6408]
[1726585820812,0.3608,60943.0,60942.0,0.082032]
[1726585821013,0.39249442,60943.0,60942.0,0.082032]
[1726585821717,0.39249442,60943.0,60935.0,0.36326125]
[1726585821718,0.39249442,60943.0,60935.0,0.00246125]
[1726585822011,0.3608,60936.0,60935.0,0.00246125]
[1726585822216,0.43267883,60936.0,60935.0,0.00246125]
[1726585822516,0.21255326,60953.0,60935.0,0.00246125]
[1726585822517,0.17842506,60949.0,60948.0,0.082024]
[1726585822713,0.05883447,60974.0,60957.0,0.082011]
[1726585822920,0.05883447,60974.0,60957.0,0.362011]
[1726585823111,0.16216009,60962.0,60957.0,0.362011]
[1726585823309,0.16216009,60965.0,60957.0,0.28]
[1726585823512,0.07824233,60969.0,60964.0,0.6408]
[1726585823716,0.05883123,60989.0,60981.0,0.081979]
[1726585824015,0.36164,60990.0,60987.0,0.28]
[1726585824016,0.3608,60990.0,60987.0,0.28]
[1726585824210,0.3608,60990.0,60988.0,0.081971]
[1726585824406,0.3608,61008.0,60991.0,0.081966]
[1726585824617,0.3608,60999.0,60993.0,0.28]
[1726585824837,0.28,61001.0,60988.0,0.3608]
[1726585825019,0.28,60989.0,60987.0,0.00245851]
[1726585825220,0.05032467,60988.0,60987.0,0.00245851]
[1726585825609,0.3608,60992.0,60987.0,0.00245851]
[1726585826119,0.3608,60992.0,60975.0,0.081987]
[1726585826120,0.081974,60986.0,60969.0,0.3608]
[1726585826419,0.3608,60981.0,60964.0,0.3608]
[1726585826626,0.3608,60981.0,60971.0,0.3608]
[1726585826815,0.3608,60981.0,60974.0,0.01795768]
[1726585827212,0.361976,60984.0,60974.0,0.01795768]
[1726585827408,0.3608,60981.0,60977.0,0.00345937]
[1726585827913,0.3608,60981.0,60978.0,0.01311]
[1726585828108,0.081979,60983.0,60978.0,0.01311]
[1726585828315,0.081979,60983.0,60979.0,0.3608]
[1726585829018,0.014,60981.0,60979.0,0.3608]
[1726585829218,0.014,60981.0,60980.0,0.081981]
[1726585829617,0.014,60983.0,60980.0,0.081981]
[1726585830216,0.014,60981.0,60979.0,0.001]
[1726585830412,0.04015702,60980.0,60979.0,0.001]
[1726585830721,0.081983,60979.0,60978.0,0.01311]
[1726585830924,0.48294207,60979.0,60978.0,0.01311]
[1726585831114,0.3608,60979.0,60978.0,0.00961696]
[1726585832520,0.39247906,60979.0,60978.0,0.00961696]
[1726585832712,0.92460194,60979.0,60964.0,0.082003]
[1726585833026,0.92460194,60979.0,60959.0,0.3608]
[1726585833027,0.3608,60974.0,60959.0,0.5240537]
[1726585833325,0.03168,60973.0,60972.0,0.081992]
[1726585833520,0.37464,60979.0,60975.0,0.081988]
[1726585833724,0.03167831,60978.0,60976.0,0.081987]
[1726585833920,0.03167831,60977.0,60976.0,0.081987]
[1726585834221,0.03167791,60977.0,60976.0,0.081987]
[1726585834617,0.3608,60979.0,60978.0,0.081984]
[1726585834823,0.3608,60979.0,60976.0,0.081986]
[1726585835119,0.3608,60979.0,60978.0,0.081984]
[1726585835313,0.3608,60979.0,60975.0,0.03153096]
[1726585835515,0.3608,60979.0,60975.0,0.01312]
[1726585836020,0.3748,60979.0,60978.0,0.081984]
[1726585836217,0.28,60993.0,60978.0,0.081984]
[1726585836218,0.3608,61000.0,60978.0,0.081984]
[1726585836419,0.03167335,60998.0,60997.0,0.081958]
[1726585836615,0.3608,61000.0,60993.0,0.081963]
[1726585836813,0.3608,61000.0,60995.0,0.081961]
[1726585837225,0.3608,61000.0,60999.0,0.081956]
[1726585837427,0.3608,61000.0,60994.0,0.081962]
[1726585837720,0.3608,61000.0,60997.0,0.001]
[1726585837721,0.014,60998.0,60997.0,0.001]
[1726585838521,0.095957,60998.0,60997.0,0.001]
[1726585838929,0.014,60998.0,60997.0,0.001]
[1726585839816,0.3608,61000.0,60996.0,0.081959]
[1726585840425,0.7391994,61007.0,60997.0,0.001]
[1726585840631,0.3632594,61007.0,61006.0,0.361946]
[1726585840817,0.3632594,61007.0,61006.0,0.2645051]
[1726585841119,0.0024594,61007.0,61006.0,0.2645051]
[1726585841323,0.0024594,61007.0,61006.0,0.081946]
[1726585841721,0.0024594,61007.0,61002.0,0.0024589]
[1726585841924,0.0024594,61007.0,61002.0,0.3632589]
[1726585842132,0.0024594,61007.0,61003.0,0.08195]
[1726585842331,0.0024594,61007.0,61006.0,0.081946]
[1726585842719,0.0024594,61007.0,61006.0,0.01311]
[1726585842917,0.3632594,61007.0,61006.0,0.01311]
[1726585843329,0.3632594,61007.0,61006.0,0.095056]
[1726585843624,0.3608,61007.0,61006.0,0.01311]
[1726585843923,0.9608,61007.0,60997.0,0.001]
[1726585844131,0.9608,61007.0,60997.0,0.081958]
[1726585844132,0.3608,60998.0,60997.0,0.081958]
[1726585844324,0.36375869,61014.0,60997.0,0.3608]
[1726585844325,0.442738,61012.0,60997.0,0.3608]
[1726585844628,0.3608,61012.0,60997.0,0.01768647]
[1726585844826,0.3608,61012.0,60993.0,0.08442308]
[1726585844827,0.3608,61004.0,61001.0,0.081953]
[1726585845025,0.3608,61004.0,60993.0,0.00245908]
[1726585845026,0.3608,61012.0,60997.0,0.28]
[1726585845224,0.03166266,61011.0,61000.0,0.3608]
[1726585845419,0.3608,61006.0,60997.0,0.28]
[1726585845620,0.07180464,61005.0,60998.0,0.01311]
[1726585845824,0.3608,61006.0,61005.0,0.081948]
[1726585846122,0.3608,61006.0,60998.0,0.01311]
[1726585846123,0.39246368,61006.0,61001.0,0.081952]
[1726585846427,0.07180489,61005.0,61002.0,0.081951]
[1726585846629,0.3608,61006.0,61002.0,0.081951]
[1726585846630,0.07180489,61004.0,61002.0,0.081951]
[1726585846923,0.07180517,61003.0,60998.0,0.095067]
[1726585847123,0.07180517,61002.0,61001.0,0.081953]
[1726585847338,0.07180517,61002.0,60998.0,0.095067]
[1726585847515,0.07180517,61001.0,61000.0,0.081954]
[1726585847717,0.04014149,61001.0,61000.0,0.081954]
[1726585847919,0.14459287,61005.0,61002.0,0.081951]
[1726585848129,0.26671341,61005.0,61002.0,0.081951]
[1726585848426,0.12212054,61005.0,61004.0,0.081949]
[1726585848629,0.4283993,61005.0,61004.0,0.573709]
[1726585848817,0.12211705,61005.0,61004.0,0.26231492]
[1726585849017,0.07180568,61005.0,61004.0,1.51797292]
[1726585849222,0.03166401,61005.0,61004.0,1.51797292]
[1726585849526,0.14582711,61013.0,61012.0,0.081938]
[1726585849825,0.14582711,61013.0,61008.0,0.00245837]
[1726585850029,0.07179696,61012.0,61009.0,0.081942]
[1726585850331,0.07179696,61011.0,61008.0,0.00245837]
[1726585850522,0.12210656,61010.0,61008.0,0.00245837]
[1726585850825,0.12210656,61009.0,61004.0,0.01804604]
[1726585851024,0.14631992,61006.0,61005.0,0.01311]
[1726585851328,0.22826592,61006.0,61005.0,0.01311]
[1726585851528,0.20405256,61006.0,61005.0,0.01311]
[1726585851825,0.12210656,61006.0,61005.0,0.095058]
[1726585852026,0.12211598,61006.0,61005.0,0.01311]
[1726585852226,0.05879013,61007.0,61006.0,0.081946]
[1726585852227,0.05031298,61007.0,61006.0,0.081946]
[1726585852428,0.04013717,61008.0,61007.0,0.081945]
[1726585852732,0.07178848,61008.0,61007.0,0.28]
[1726585852932,0.07178848,61008.0,61007.0,1.37176]
[1726585853130,0.07178848,61008.0,61007.0,0.77176]
[1726585853330,0.07178848,61008.0,61007.0,1.53565]
[1726585853632,0.14642491,61011.0,61010.0,0.081941]
[1726585853933,0.3608,61020.0,61011.0,0.08194]
[1726585853934,0.14642491,61012.0,61011.0,0.08194]
[1726585854123,0.14642491,61012.0,61011.0,0.44274]
[1726585854325,0.07178272,61012.0,61011.0,1.81446]
[1726585854625,0.07178109,61012.0,61011.0,1.21446]
[1726585854823,0.07178109,61012.0,61011.0,1.81446]
[1726585855225,0.07178109,61012.0,61011.0,1.8964]
[1726585855631,0.03165317,61012.0,61011.0,1.8964]
[1726585855823,0.14657786,61021.0,61020.0,0.081928]
[1726585856028,0.14657786,61021.0,61019.0,0.081929]
[1726585856232,0.12207706,61020.0,61018.0,0.3608]
[1726585856429,0.14657786,61021.0,61018.0,0.3608]
[1726585856430,0.14657786,61021.0,61019.0,0.081929]
[1726585856631,0.12207503,61020.0,61019.0,0.081929]
[1726585857229,0.07177881,61020.0,61019.0,0.163858]
[1726585857435,0.3608,61029.0,61019.0,0.001]
[1726585857637,0.3608,61029.0,61026.0,0.081918]
[1726585858140,0.3608,61029.0,61023.0,0.081923]
[1726585858328,0.3608,61029.0,61019.0,0.001]
[1726585858329,0.3608,61029.0,61020.0,0.081927]
[1726585858530,0.3608,61029.0,61019.0,0.001]
[1726585858531,0.05029766,61028.0,61019.0,0.01879277]
[1726585858733,0.14638531,61034.0,61027.0,0.3608]
[1726585859029,0.14638531,61035.0,61027.0,0.3608]
[1726585859235,0.05028792,61034.0,61033.0,0.08191]
[1726585859736,0.3608,61036.0,61034.0,0.081908]
[1726585860127,0.05028663,61035.0,61029.0,0.00245765]
[1726585860332,0.3608,61036.0,61029.0,0.00245765]
[1726585860333,0.28,61033.0,61029.0,0.00245765]
[1726585860534,0.14638531,61034.0,61029.0,0.08437265]
[1726585860731,0.14638531,61035.0,61029.0,0.00245765]
[1726585861038,0.19667469,61034.0,61029.0,0.00245765]
[1726585861236,0.05028951,61033.0,61029.0,0.00345765]
[1726585861535,0.14638531,61035.0,61030.0,0.0131]
[1726585861735,0.05028879,61034.0,61030.0,0.0131]
[1726585861930,0.081913,61031.0,61030.0,0.0131]
[1726585862128,0.13220179,61031.0,61030.0,0.0131]
[1726585862430,0.081913,61031.0,61030.0,0.0131]
[1726585862624,0.49300179,61031.0,61030.0,0.0131]
[1726585862830,0.081932,61017.0,61003.0,0.08195]
[1726585863031,0.081932,61017.0,60998.0,0.36325864]
[1726585863032,0.78723463,61017.0,60998.0,0.36325864]
[1726585863237,0.16270515,61007.0,60998.0,0.00245864]
[1726585863440,0.14643463,61002.0,61001.0,0.081953]
[1726585863639,0.14643463,61008.0,60998.0,0.00245864]
[1726585863840,0.28,61006.0,60998.0,0.02015455]
[1726585864037,0.05031171,61005.0,60998.0,0.02015455]
[1726585864542,0.081956,61000.0,60999.0,0.00596]
[1726585864742,0.41226771,61000.0,60999.0,0.01907]
[1726585865135,0.14667012,61000.0,60999.0,0.37987]
[1726585865340,0.001,61005.0,61000.0,0.081954]
[1726585865538,0.090454,61004.0,60999.0,0.37987]
[1726585865740,0.081952,61002.0,60999.0,0.01907]
[1726585865939,0.14667012,61000.0,60999.0,0.01907]
[1726585866141,0.22862412,61000.0,60999.0,0.01907]
[1726585866336,0.17240782,61000.0,60999.0,0.01907]
[1726585866537,0.09045382,61000.0,60999.0,0.01907]
[1726585867245,0.06431327,61000.0,60999.0,0.382026]
[1726585867439,0.04566351,61000.0,60999.0,0.382026]
[1726585867743,0.13611733,61000.0,60999.0,0.30007]
[1726585869141,0.22505369,61000.0,60999.0,0.38087]
[1726585869343,0.31550751,61000.0,60999.0,0.38087]
[1726585869747,0.13611733,61000.0,60999.0,0.02007]
[1726585869934,0.573756,60999.0,60973.0,0.6408]
[1726585870139,0.081981,60980.0,60975.0,0.00245957]
[1726585870338,0.17944591,60976.0,60975.0,0.00245957]
[1726585870647,0.12211733,60976.0,60975.0,0.00245957]
[1726585870845,0.081989,60974.0,60973.0,0.02103779]
[1726585871052,0.12211733,60974.0,60960.0,0.3608]
[1726585871344,0.12211733,60973.0,60972.0,0.3608]
[1726585871646,0.03166351,60973.0,60972.0,0.3608]
[1726585871843,0.12211733,60973.0,60972.0,0.3608]
[1726585872047,0.07180406,60973.0,60968.0,0.3608]
[1726585872346,0.07180406,60973.0,60962.0,0.3608]
[1726585872347,0.082002,60965.0,60962.0,0.3608]
[1726585872644,0.3608,60963.0,60951.0,0.00246047]
[1726585872850,0.14664952,60954.0,60951.0,0.00246047]
[1726585873044,0.26880348,60953.0,60951.0,0.00246047]
[1726585873244,0.07180406,60952.0,60951.0,0.02399144]
[1726585873546,0.04014055,60952.0,60951.0,0.00246047]
[1726585873746,0.03166351,60952.0,60951.0,0.00246047]
[1726585873947,0.12215608,60952.0,60951.0,0.00346047]
[1726585874151,0.12215608,60952.0,60932.0,0.3608]
[1726585874152,0.43260406,60952.0,60932.0,0.28]
[1726585874340,0.082029,60945.0,60932.0,0.28]
[1726585874542,0.082029,60945.0,60923.0,0.3608]
[1726585874543,0.07184159,60944.0,60943.0,0.28]
[1726585874741,0.03166351,60944.0,60943.0,0.28]
[1726585875146,0.03166351,60944.0,60939.0,0.00246122]
[1726585875147,0.07184088,60951.0,60939.0,0.36326122]
[1726585875342,0.07183932,60950.0,60939.0,0.36326122]
[1726585875551,0.1538617,60949.0,60939.0,0.36326122]
[1726585875758,0.03166351,60948.0,60939.0,0.3608]
[1726585876148,0.03166351,60948.0,60943.0,0.28]
[1726585876350,0.3608,60944.0,60939.0,0.02415094]
[1726585876551,0.03166351,60943.0,60939.0,0.00246118]
[1726585876846,0.07184428,60943.0,60940.0,0.28]
[1726585877046,0.03166351,60943.0,60940.0,0.28]
[1726585877255,0.07184167,60943.0,60940.0,0.28]
[1726585877459,0.07184161,60942.0,60940.0,0.28]
[1726585877764,0.03166351,60941.0,60939.0,0.00346118]
[1726585877958,0.03166351,60940.0,60939.0,0.00346118]
[1726585878158,0.04569293,60943.0,60940.0,0.001]
[1726585878470,0.014,60943.0,60940.0,0.001]
[1726585878658,0.03169231,60942.0,60941.0,0.082034]
[1726585878958,0.03169231,60942.0,60941.0,0.574314]
[1726585879166,0.014,60943.0,60941.0,0.082034]
[1726585879363,0.014,60943.0,60942.0,0.082032]
[1726585879953,0.3608,60946.0,60939.0,0.02207827]
[1726585880161,0.3608,60946.0,60935.0,0.00246107]
[1726585880162,0.3608,60940.0,60935.0,0.00246107]
[1726585880366,0.3608,60940.0,60935.0,0.02371915]
[1726585880367,0.08204,60936.0,60935.0,0.02371915]
[1726585880568,0.11372973,60936.0,60935.0,0.00246107]
[1726585881164,0.03168973,60936.0,60935.0,0.02378997]
[1726585881370,0.11372973,60936.0,60935.0,0.00246107]
[1726585881559,0.11373783,60936.0,60935.0,0.00246107]
[1726585881761,0.082042,60935.0,60924.0,0.30138719]
[1726585881967,0.39249783,60934.0,60924.0,0.28]
[1726585882168,0.3608,60934.0,60924.0,0.28]
[1726585882774,0.082046,60933.0,60924.0,0.30118426]
[1726585882962,0.474946,60933.0,60924.0,0.30118426]
[1726585883263,0.3929,60933.0,60924.0,0.30118426]
[1726585883468,0.3929,60933.0,60932.0,0.3608]
[1726585883769,0.3929,60933.0,60924.0,0.30118426]
[1726585883960,0.3939,60933.0,60924.0,0.30218426]
[1726585884466,0.362046,60932.0,60924.0,0.02118426]
[1726585884671,0.082055,60925.0,60920.0,0.0024616]
[1726585884861,0.3608,60926.0,60920.0,0.0024616]
[1726585885059,0.3608,60926.0,60920.0,0.02357246]
[1726585885271,0.3939,60933.0,60929.0,0.082049]
[1726585885465,0.3939,60933.0,60925.0,0.3608]
[1726585885768,0.3939,60933.0,60929.0,0.3608]
[1726585886370,0.3939,60933.0,60929.0,0.44285]
[1726585886559,0.3939,60933.0,60929.0,0.3608]
[1726585886762,0.3939,60933.0,60925.0,0.082054]
[1726585887069,0.3939,60933.0,60920.0,0.0024616]
[1726585887070,0.4069,60933.0,60924.0,0.083056]
[1726585887278,0.4069,60933.0,60926.0,0.3608]
[1726585887569,0.082056,60925.0,60920.0,0.0024616]
[1726585887770,0.3608,60923.0,60920.0,0.0245695]
[1726585887977,0.3608,60923.0,60920.0,0.0024616]
[1726585888166,0.082061,60921.0,60920.0,0.0024616]
[1726585888767,0.3608,60923.0,60918.0,0.02220026]
[1726585888768,0.082063,60919.0,60918.0,0.02220026]
[1726585888975,0.3608,60935.0,60918.0,0.30220026]
[1726585889182,0.3608,60935.0,60934.0,0.082043]
[1726585889971,0.3608,60935.0,60934.0,0.522043]
[1726585890172,0.3608,60935.0,60934.0,0.44]
[1726585890368,0.3608,60935.0,60934.0,0.082043]
[1726585890564,0.3608,60935.0,60934.0,0.10388748]
[1726585890769,0.3608,60935.0,60934.0,0.02184448]
[1726585891084,0.3608,60935.0,60931.0,0.082047]
[1726585891269,0.03169604,60934.0,60932.0,0.082046]
[1726585891469,0.3708,60935.0,60929.0,0.8024]
[1726585891668,0.3708,60935.0,60933.0,0.082044]
[1726585891873,0.3708,60935.0,60929.0,0.82412852]
[1726585891874,0.3608,60935.0,60929.0,0.02172852]
[1726585892071,0.3748,60935.0,60934.0,0.001]
[1726585892378,0.40649751,60935.0,60934.0,0.001]
[1726585892675,0.3748,60935.0,60934.0,0.001]
[1726585892875,0.40649823,60935.0,60934.0,0.001]
[1726585893070,0.44668351,60935.0,60934.0,0.001]
[1726585893471,0.52872551,60935.0,60934.0,0.001]
[1726585893676,0.44668351,60935.0,60934.0,0.001]
[1726585894181,0.44268351,60935.0,60929.0,0.001]
[1726585894376,0.07188351,60934.0,60929.0,0.001]
[1726585894583,0.082049,60930.0,60924.0,0.02411714]
[1726585894778,0.52242651,60934.0,60924.0,0.02411714]
[1726585894779,0.15393351,60929.0,60924.0,0.02411714]
[1726585894984,0.07189253,60928.0,60924.0,0.02411714]
[1726585895171,0.03170231,60927.0,60924.0,0.02411714]
[1726585895369,0.450543,60934.0,60924.0,0.02411714]
[1726585895370,0.03170231,60926.0,60924.0,0.02411714]
[1726585895574,0.03170231,60925.0,60924.0,0.02411714]
[1726585895779,0.07189239,60925.0,60924.0,0.01771449]
[1726585895974,0.07189239,60925.0,60922.0,0.082059]
[1726585896175,0.07189239,60924.0,60922.0,0.082059]
[1726585896480,0.00246216,60929.0,60922.0,0.082059]
[1726585896481,0.07189239,60923.0,60922.0,0.082059]
[1726585896673,0.03170231,60923.0,60918.0,0.08283003]
[1726585896976,0.14632159,60927.0,60911.0,0.3632626]
[1726585896977,0.04019008,60922.0,60911.0,0.3632626]
[1726585897176,0.00246216,60929.0,60917.0,0.3608]
[1726585897177,0.082058,60924.0,60917.0,0.3608]
[1726585897372,0.04019079,60923.0,60911.0,0.38470046]
[1726585897686,0.04019079,60922.0,60916.0,0.082066]
[1726585897986,0.04019079,60921.0,60916.0,0.082066]
[1726585898181,0.04019231,60920.0,60919.0,0.522063]
[1726585898386,0.00246216,60929.0,60928.0,0.082051]
[1726585898574,0.16257954,60939.0,60923.0,0.082058]
[1726585898575,0.14632159,60938.0,60934.0,0.082043]
[1726585898777,0.4009853,60935.0,60934.0,0.082043]
[1726585899181,0.4513535,60935.0,60934.0,0.082043]
[1726585899379,0.4513535,60935.0,60929.0,0.44285]
[1726585899581,0.0401853,60934.0,60925.0,0.082055]
[1726585899783,0.082053,60927.0,60925.0,0.0211118]
[1726585899982,0.082055,60925.0,60924.0,0.00246175]
[1726585900288,0.25313834,60926.0,60924.0,0.02384347]
[1726585900481,0.44,60933.0,60924.0,0.00246175]
[1726585900482,0.0905588,60925.0,60924.0,0.00246175]
[1726585900977,0.16257954,60925.0,60924.0,0.0241501]
[1726585901178,0.16257954,60925.0,60924.0,0.08451875]
[1726585901482,0.16325812,60925.0,60924.0,0.08451875]
[1726585901786,0.09656073,60925.0,60924.0,0.08551875]
[1726585902082,0.25981885,60925.0,60924.0,0.08551875]
[1726585902287,0.18912363,60925.0,60924.0,0.44631875]
[1726585902477,0.1634417,60927.0,60926.0,0.082054]
[1726585902673,0.1788351,60930.0,60924.0,0.00346175]
[1726585902887,0.1788351,60930.0,60929.0,0.08205]
[1726585903089,0.1788351,60930.0,60929.0,0.44285]
[1726585903281,0.1788351,60931.0,60930.0,0.082049]
[1726585904187,0.05885437,60939.0,60930.0,0.082049]
[1726585904188,0.05885246,60938.0,60937.0,0.082039]
[1726585904384,0.0024616,60942.0,60936.0,0.3608]
[1726585904688,0.0024616,60942.0,60941.0,0.442834]
[1726585906476,0.0024616,60942.0,60941.0,0.082034]
[1726585906889,0.11618606,60942.0,60937.0,0.00246135]
[1726585907184,0.03169146,60941.0,60938.0,0.082037]
[1726585907389,0.0820518,60940.0,60939.0,0.082036]
[1726585907984,0.05884866,60950.0,60947.0,0.082025]
[1726585908282,0.05884866,60950.0,60939.0,0.3608]
[1726585908283,0.082019,60952.0,60942.0,0.082031]
[1726585908485,0.082022,60950.0,60942.0,0.082031]
[1726585908682,0.3608,60946.0,60943.0,0.082031]
[1726585908877,0.3608,60946.0,60938.0,0.44]
[1726585909089,0.3608,60946.0,60945.0,0.082028]
[1726585909883,0.3608,60949.0,60945.0,0.082028]
[1726585910194,0.41964866,60949.0,60942.0,0.082031]
[1726585910388,0.0990226,60948.0,60940.0,0.3608]
[1726585910697,0.04017394,60947.0,60946.0,0.082027]
[1726585911784,0.04017394,60947.0,60946.0,0.246081]
[1726585912089,0.05883269,60961.0,60959.0,0.08201]
[1726585912391,0.05883269,60961.0,60956.0,0.082012]
[1726585912586,0.05883269,60963.0,60957.0,0.082012]
[1726585912787,0.05883269,60963.0,60958.0,0.082011]
[1726585912983,0.05034638,60959.0,60958.0,0.082011]
[1726585913187,0.05034638,60959.0,60958.0,0.362011]
[1726585913390,0.17961006,60959.0,60958.0,0.362011]
[1726585913786,0.05034638,60959.0,60958.0,0.362011]
[1726585914302,0.05034638,60959.0,60956.0,0.02122796]
[1726585914594,0.00246103,60960.0,60953.0,0.6408]
[1726585914595,0.3608,60957.0,60953.0,0.00156]
[1726585914785,0.16321052,60954.0,60950.0,0.082022]
[1726585914988,0.05034638,60953.0,60949.0,0.00246104]
[1726585915200,0.05034638,60952.0,60951.0,0.08202]
[1726585915383,0.17961006,60952.0,60949.0,0.00246104]
[1726585915587,0.05034638,60951.0,60950.0,0.082022]
[1726585916697,0.05883546,60956.0,60952.0,0.082019]
[1726585916997,0.05035135,60955.0,60952.0,0.082019]
[1726585917194,0.05035135,60954.0,60953.0,0.082018]
[1726585917798,0.21348501,60954.0,60953.0,0.082018]
[1726585917995,0.08203722,60954.0,60953.0,0.082018]
[1726585918503,0.00246103,60960.0,60953.0,0.082018]
[1726585918504,0.14679084,60959.0,60958.0,0.164022]
[1726585918686,0.3608,60970.0,60958.0,0.164022]
[1726585918687,0.13803578,60962.0,60961.0,0.164014]
[1726585918892,0.28691665,60970.0,60969.0,0.081996]
[1726585919093,0.41961654,60975.0,60974.0,0.081989]
[1726585919302,0.41961654,60975.0,60974.0,0.06242482]
[1726585919596,0.05881549,60979.0,60970.0,0.081994]
[1726585919798,0.05881549,60979.0,60969.0,0.3608]
[1726585919799,0.14079949,60979.0,60969.0,0.3608]
[1726585920097,0.04015533,60978.0,60969.0,0.3608]
[1726585920298,0.05881549,60979.0,60975.0,0.3608]
[1726585920299,0.04015533,60977.0,60975.0,0.3608]